bitfinex/quotes_SOLUSD_20220227
["timestamp","ask_amount","ask_price","bid_price","bid_amount"]
[1645924904860,46.7694,87.799,87.712,113.6]
[1645924905058,46.7694,87.799,87.721,113.6]
[1645924905458,46.7694,87.799,87.722,2.74678921]
[1645924905658,46.7694,87.799,87.725,113.6]
[1645924906058,46.7694,87.799,87.726,2.74678921]
[1645924906259,46.7694,87.799,87.741,113.6]
[1645924907359,1.62095903,87.806,87.743,113.6]
[1645924907560,46.204,87.827,87.744,0.25]
[1645924907769,1.60497543,87.826,87.744,2.99678921]
[1645924908160,1.60497543,87.826,87.745,2.74678921]
[1645924908363,1.60497543,87.826,87.761,113.6]
[1645924908560,1.60497543,87.826,87.763,113.6]
[1645924909561,1.60497543,87.826,87.762,49.30296375]
[1645924910264,1.36534704,87.813,87.762,49.30296375]
[1645924913166,1.36534704,87.813,87.75,17.0882]
[1645924913364,1.36534704,87.813,87.686,23.605]
[1645924913365,27.4789,87.812,87.74,17.0987]
[1645924913565,1.70629756,87.811,87.71,16.45]
[1645924913768,4.558,87.81,87.71,16.45]
[1645924914167,17.0998,87.79,87.712,113.6]
[1645924914467,1.77590209,87.788,87.712,113.6]
[1645924914668,51.90181342,87.787,87.711,50.4897337]
[1645924914867,1.68835228,87.786,87.711,50.4897337]
[1645924915067,4.558,87.785,87.688,4.558]
[1645924915267,17.1064,87.75,87.688,4.558]
[1645924915470,1.51608042,87.749,87.671,4.559]
[1645924915666,1.69420886,87.747,87.67,73.4712]
[1645924915867,1.69420886,87.747,87.671,4.559]
[1645924916067,50.03520502,87.746,87.672,55.76176011]
[1645924916270,1.62906178,87.745,87.672,55.76176011]
[1645924917068,50.03520502,87.746,87.672,55.76176011]
[1645924917069,17.1095,87.74,87.672,55.76176011]
[1645924917270,1.379186,87.739,87.672,55.76176011]
[1645924919972,17.1105,87.73,87.672,55.76176011]
[1645924920272,1.63067487,87.729,87.672,55.76176011]
[1645924920473,1.72273795,87.745,87.68,130.7077]
[1645924920675,1.72273795,87.745,87.673,4.559]
[1645924921075,1.72273795,87.745,87.673,118.159]
[1645924921873,1.72273795,87.745,87.69,130.7061]
[1645924922578,24.3494,87.747,87.69,130.7061]
[1645924922778,24.3494,87.747,87.691,4.559]
[1645924925479,24.3494,87.747,87.69,147.1561]
[1645924926895,24.3494,87.747,87.691,4.559]
[1645924927094,24.3494,87.747,87.69,147.1561]
[1645924927294,24.3494,87.747,87.691,4.559]
[1645924929298,25.88842073,87.747,87.691,4.559]
[1645924929596,25.88842073,87.747,87.69,147.1561]
[1645924930397,24.3494,87.747,87.69,147.1561]
[1645924930901,24.3494,87.747,87.691,4.559]
[1645924931997,1.69368348,87.787,87.692,113.6]
[1645924932299,1.8347878,87.786,87.694,113.6]
[1645924932496,1.8347878,87.786,87.695,4.808]
[1645924932897,1.44684666,87.784,87.695,4.808]
[1645924933298,1.44684666,87.784,87.697,2.8006213]
[1645924933499,1.44684666,87.784,87.713,113.6]
[1645924933697,1.44684666,87.784,87.714,4.558]
[1645924934804,1.44684666,87.784,87.715,0.25]
[1645924935005,1.44684666,87.784,87.721,113.6]
[1645924935204,1.44684666,87.784,87.722,4.558]
[1645924935604,48.0156,87.787,87.723,113.6]
[1645924935810,48.0156,87.787,87.724,4.808]
[1645924936710,48.0156,87.787,87.731,113.6]
[1645924936908,48.0156,87.787,87.741,44.17062671]
[1645924937210,0.25,87.786,87.741,44.17062671]
[1645924937409,0.25,87.786,87.742,4.557]
[1645924938013,0.25,87.786,87.742,118.157]
[1645924938610,0.25,87.786,87.742,4.557]
[1645924938809,0.25,87.786,87.74,16.45]
[1645924939012,10.14028236,87.786,87.74,16.45]
[1645924939213,10.14028236,87.786,87.73,17.0912]
[1645924940212,6.21148868,87.785,87.73,17.0912]
[1645924940511,17.1016,87.78,87.73,17.0912]
[1645924940711,6.18530985,87.779,87.73,17.0912]
[1645924942312,6.18530985,87.779,87.7,73.4534]
[1645924942313,1.66925726,87.769,87.7,57.0034]
[1645924942513,1.57369441,87.767,87.7,57.0034]
[1645924945417,23.4723,87.768,87.701,113.6]
[1645924946220,23.4723,87.768,87.702,0.25]
[1645924946417,23.4723,87.768,87.702,2.74678921]
[1645924946817,23.4723,87.768,87.701,113.6]
[1645924947018,1.87168208,87.767,87.701,113.6]
[1645924947618,0.25,87.766,87.701,113.6]
[1645924948020,1.87168208,87.767,87.701,113.6]
[1645924948824,1.87168208,87.767,87.7,17.1048]
[1645924949222,47.5935565,87.759,87.7,17.1048]
[1645924949422,1.84263212,87.758,87.7,17.1048]
[1645924951330,17.1058,87.75,87.7,17.1048]
[1645924951531,6.89,87.75,87.69,17.1083]
[1645924951726,0.69723049,87.71,87.69,17.1083]
[1645924952929,0.69723049,87.71,87.67,57.0228]
[1645924952930,0.69723049,87.71,87.68,17.11]
[1645924953136,0.69723049,87.71,87.65,16.45]
[1645924953329,17.116,87.7,87.604,2.80398422]
[1645924953530,1.69428105,87.699,87.622,113.6]
[1645924953731,25.676,87.7,87.63,16.45]
[1645924953732,1.35337132,87.697,87.63,16.45]
[1645924953933,1.35337132,87.697,87.63,56.28767449]
[1645924954931,1.35337132,87.697,87.63,79.50616333]
[1645924955334,1.35337132,87.697,87.631,113.6]
[1645924955730,22.6752,87.698,87.633,113.6]
[1645924956228,22.6752,87.698,87.632,23.21848884]
[1645924956229,22.6752,87.698,87.635,113.6]
[1645924956432,22.6752,87.698,87.634,23.21848884]
[1645924956631,1.51643276,87.697,87.63,89.85517449]
[1645924957438,1.51643276,87.697,87.631,113.6]
[1645924960557,1.46752559,87.697,87.631,113.6]
[1645924961159,22.6752,87.698,87.631,113.6]
[1645924961356,22.6752,87.698,87.633,113.6]
[1645924961858,22.6752,87.698,87.635,113.6]
[1645924962261,22.6752,87.698,87.637,113.6]
[1645924962661,22.6752,87.698,87.639,113.6]
[1645924963160,0.25,87.697,87.639,113.6]
[1645924963760,0.25,87.697,87.631,113.6]
[1645924964165,1.64332811,87.697,87.631,113.6]
[1645924964366,0.25,87.697,87.631,113.6]
[1645924964563,0.25,87.697,87.63,89.85517449]
[1645924964564,5.73,87.697,87.63,33.5675]
[1645924964768,5.73,87.697,87.62,17.1206]
[1645924964769,7.37156341,87.697,87.62,17.1206]
[1645924964967,27.42393081,87.696,87.6,57.0644]
[1645924965168,1.50784915,87.695,87.584,24.1051]
[1645924965366,4.564,87.694,87.584,24.1051]
[1645924965565,27.31827542,87.694,87.586,113.6]
[1645924965767,1.75362098,87.693,87.586,113.6]
[1645924965967,1.63434434,87.692,87.586,113.6]
[1645924966166,4.564,87.691,87.586,113.6]
[1645924966367,17.1238,87.67,87.591,113.6]
[1645924966566,49.21119806,87.668,87.591,113.6]
[1645924966769,1.42771238,87.667,87.59,16.45]
[1645924966967,1.42771238,87.667,87.585,56.33222308]
[1645924967169,4.564,87.666,87.585,56.33222308]
[1645924967774,6.06697464,87.666,87.585,56.33222308]
[1645924968571,1.42522335,87.649,87.585,56.33222308]
[1645924968771,1.76935973,87.648,87.585,56.33222308]
[1645924969474,17.1288,87.64,87.585,56.33222308]
[1645924969672,56.00483645,87.639,87.585,56.33222308]
[1645924969873,1.85306336,87.638,87.585,56.33222308]
[1645924974980,17.13,87.63,87.585,56.33222308]
[1645924975181,1.71183148,87.629,87.585,56.33222308]
[1645924975383,1.71183148,87.629,87.57,17.13]
[1645924975581,1.71183148,87.629,87.54,57.101]
[1645924975784,24.3855,87.628,87.54,73.551]
[1645924975985,24.3855,87.628,87.533,22.6688]
[1645924975986,17.1341,87.61,87.533,22.6688]
[1645924976183,23.4664,87.609,87.533,22.6688]
[1645924976384,46.62001024,87.608,87.534,60.00480657]
[1645924976683,1.3547851,87.607,87.534,60.00480657]
[1645924978484,17.136,87.6,87.534,60.00480657]
[1645924978686,1.60294567,87.599,87.534,60.00480657]
[1645924979884,24.7167,87.598,87.534,60.00480657]
[1645924980085,1.46011336,87.597,87.534,60.00480657]
[1645924980885,4.567,87.611,87.535,113.6]
[1645924981084,23.4195,87.627,87.536,3.06375931]
[1645924981285,23.4195,87.627,87.54,16.45]
[1645924981484,23.4195,87.627,87.541,113.6]
[1645924981885,45.76388416,87.626,87.542,2.74678921]
[1645924984488,0.25,87.625,87.542,2.74678921]
[1645924984689,0.25,87.625,87.544,113.6]
[1645924984895,0.25,87.625,87.545,2.2642517]
[1645924985190,0.25,87.625,87.562,2.76951628]
[1645924985389,0.25,87.625,87.564,113.6]
[1645924985589,0.25,87.625,87.565,3.26554711]
[1645924985988,0.25,87.625,87.568,2.37746219]
[1645924986213,0.25,87.625,87.581,113.6]
[1645924986413,0.25,87.625,87.582,2.61737078]
[1645924986816,0.25,87.625,87.583,2.74678921]
[1645924989210,0.25,87.625,87.584,113.6]
[1645924989409,0.25,87.625,87.585,2.99070208]
[1645924989611,0.25,87.625,87.585,5.73749129]
[1645924989811,0.25,87.625,87.586,113.6]
[1645924990014,0.25,87.625,87.587,2.68995756]
[1645924990214,0.25,87.625,87.587,5.43674677]
[1645924990413,0.25,87.625,87.588,113.6]
[1645924990611,0.25,87.625,87.589,2.51274524]
[1645924990814,0.25,87.625,87.591,113.6]
[1645924991213,0.25,87.625,87.592,2.74678921]
[1645924991411,0.25,87.625,87.592,2.04955872]
[1645924991811,0.25,87.625,87.593,2.74678921]
[1645924992013,0.25,87.625,87.591,113.6]
[1645924992814,0.25,87.625,87.59,64.349186]
[1645924992815,56.69423478,87.686,87.593,113.6]
[1645924993015,1.44481706,87.708,87.601,113.6]
[1645924993216,1.44481706,87.708,87.611,113.6]
[1645924993417,1.44481706,87.708,87.612,2.69460509]
[1645924993616,1.44481706,87.708,87.613,0.25]
[1645924993816,1.44481706,87.708,87.615,2.66072909]
[1645924994015,52.28651132,87.708,87.616,0.25]
[1645924994217,52.28651132,87.708,87.631,113.6]
[1645924994416,52.28651132,87.708,87.633,113.6]
[1645924995222,52.28651132,87.708,87.634,2.99678921]
[1645924995618,47.1362,87.709,87.635,2.74678921]
[1645924995820,47.1362,87.709,87.651,113.6]
[1645924996720,0.25,87.708,87.651,113.6]
[1645925000421,0.25,87.708,87.65,33.5598]
[1645925000828,0.25,87.708,87.65,17.1098]
[1645925000829,6.92,87.708,87.65,17.1098]
[1645925001023,6.92,87.708,87.64,17.1168]
[1645925001224,4.562,87.707,87.621,23.6046]
[1645925001426,5.9349667,87.707,87.621,23.6046]
[1645925001829,5.9349667,87.707,87.604,48.31434373]
[1645925002026,2.5610544,87.706,87.604,48.31434373]
[1645925002225,4.563,87.705,87.604,48.31434373]
[1645925002429,6.15679048,87.705,87.604,48.31434373]
[1645925003028,1.76341883,87.704,87.604,48.31434373]
[1645925003227,4.563,87.703,87.604,48.31434373]
[1645925003628,57.05935469,87.669,87.604,48.31434373]
[1645925004029,57.05935469,87.669,87.59,33.5714]
[1645925004228,6.02304838,87.668,87.59,17.1214]
[1645925004428,6.02304838,87.668,87.576,4.564]
[1645925004627,17.1299,87.64,87.56,57.0906]
[1645925004828,1.51165359,87.639,87.56,57.0906]
[1645925005029,1.64943985,87.638,87.561,57.04515677]
[1645925007832,1.64943985,87.638,87.562,4.566]
[1645925009233,1.64943985,87.638,87.562,118.166]
[1645925009435,46.67668211,87.639,87.562,118.166]
[1645925009635,46.67668211,87.639,87.563,2.74678921]
[1645925009836,46.67668211,87.639,87.564,4.566]
[1645925010036,4.566,87.664,87.564,4.566]
[1645925010235,1.78398868,87.666,87.565,116.59678921]
[1645925010435,1.78398868,87.666,87.567,113.6]
[1645925010638,1.82442292,87.678,87.581,113.6]
[1645925011037,17.1223,87.67,87.582,4.564]
[1645925011236,1.40055276,87.669,87.582,7.31078921]
[1645925011435,1.40055276,87.669,87.583,113.6]
[1645925011637,1.40055276,87.669,87.584,4.564]
[1645925011835,1.40055276,87.669,87.585,113.6]
[1645925012037,1.40055276,87.669,87.586,4.564]
[1645925012236,1.40055276,87.669,87.591,113.6]
[1645925012435,1.40055276,87.669,87.593,113.6]
[1645925012839,0.25,87.668,87.593,113.6]
[1645925015337,0.25,87.668,87.592,60.86132887]
[1645925016441,78.70421221,87.667,87.479,67.98]
[1645925016638,78.70421221,87.667,87.435,16.7422]
[1645925016639,205.61,87.64,87.435,16.7422]
[1645925016842,1.49655937,87.618,87.435,16.7422]
[1645925017042,1.49655937,87.618,87.425,74.3888]
[1645925017043,207.10655937,87.6,87.425,74.3888]
[1645925017340,207.10655937,87.6,87.426,57.44922985]
[1645925017341,3.13858802,87.589,87.426,57.44922985]
[1645925017542,205.61,87.58,87.426,57.44922985]
[1645925017742,16.45,87.57,87.426,56.94922985]
[1645925017941,6.24788126,87.569,87.426,56.94922985]
[1645925018240,22.97296861,87.569,87.426,56.94922985]
[1645925018444,17.1535,87.52,87.426,56.94922985]
[1645925018843,67.45356222,87.519,87.426,56.94922985]
[1645925019043,1.63242556,87.518,87.426,56.94922985]
[1645925019242,1.674683,87.517,87.426,56.94922985]
[1645925019441,51.62692097,87.517,87.426,56.94922985]
[1645925019642,1.71503225,87.516,87.426,56.94922985]
[1645925020042,0.98337038,87.531,87.426,56.94922985]
[1645925020043,1.76341883,87.531,87.44,16.45]
[1645925020250,1.89272991,87.548,87.441,44.03752722]
[1645925020644,1.89272991,87.548,87.442,113.6]
[1645925020944,1.89272991,87.548,87.443,0.25]
[1645925021143,1.89272991,87.548,87.451,113.6]
[1645925021344,2.03237114,87.559,87.452,0.25]
[1645925021543,1.68259228,87.569,87.452,0.25]
[1645925021744,1.81239559,87.576,87.452,0.25]
[1645925022342,4.57,87.575,87.452,113.85]
[1645925022543,1.81239559,87.576,87.453,4.57]
[1645925022745,4.57,87.575,87.454,0.25]
[1645925022943,1.81239559,87.576,87.457,113.6]
[1645925023142,1.81239559,87.576,87.458,4.82]
[1645925023546,1.81239559,87.576,87.461,113.6]
[1645925023742,0.25,87.575,87.462,4.82]
[1645925024143,4.82,87.575,87.462,4.82]
[1645925025845,0.25,87.575,87.462,4.82]
[1645925027244,4.57,87.574,87.462,4.82]
[1645925027543,16.45,87.57,87.462,4.82]
[1645925027747,1.79597641,87.569,87.462,4.57]
[1645925029146,1.79597641,87.569,87.463,0.25]
[1645925029446,1.79597641,87.569,87.464,4.57]
[1645925029648,1.79597641,87.569,87.465,0.25]
[1645925029845,1.79597641,87.569,87.466,4.57]
[1645925030047,1.79597641,87.569,87.467,0.25]
[1645925030247,1.79597641,87.569,87.468,4.57]
[1645925030447,1.79597641,87.569,87.462,4.57]
[1645925031648,6.36597641,87.569,87.463,0.25]
[1645925031855,6.36597641,87.569,87.464,4.57]
[1645925032050,36.3726892,87.569,87.465,0.25]
[1645925032251,2.07168045,87.568,87.464,4.57]
[1645925032458,2.07168045,87.568,87.45,57.1441]
[1645925032459,3.05505083,87.568,87.462,4.57]
[1645925032649,44.00363232,87.567,87.45,17.1502]
[1645925032849,1.80352604,87.566,87.45,17.1502]
[1645925033049,17.1512,87.54,87.45,17.1502]
[1645925033252,6.30788713,87.539,87.45,17.1502]
[1645925033660,6.30788713,87.539,87.451,113.6]
[1645925033854,6.30788713,87.539,87.457,113.6]
[1645925034555,6.30788713,87.539,87.45,17.1502]
[1645925034883,2.01858553,87.529,87.443,113.6]
[1645925035582,2.01858553,87.529,87.444,4.571]
[1645925035980,2.01858553,87.529,87.451,113.6]
[1645925036580,2.01858553,87.529,87.457,113.6]
[1645925038483,2.01858553,87.529,87.461,113.6]
[1645925038690,0.25,87.528,87.461,113.6]
[1645925043091,0.25,87.528,87.46,17.1483]
[1645925043794,6.67,87.528,87.42,57.1718]
[1645925043990,4.572,87.527,87.42,57.1718]
[1645925044190,47.177,87.526,87.424,113.6]
[1645925044389,17.1544,87.51,87.424,113.6]
[1645925044593,6.47387646,87.525,87.423,5.97119154]
[1645925044594,1.74764471,87.509,87.426,113.6]
[1645925044790,6.55217946,87.519,87.426,113.6]
[1645925044991,1.97917946,87.519,87.426,113.6]
[1645925047495,1.97917946,87.519,87.432,113.6]
[1645925047696,1.87150201,87.525,87.433,0.25]
[1645925047892,1.87150201,87.525,87.433,2.99678921]
[1645925048294,1.87150201,87.525,87.434,2.74678921]
[1645925048493,2.03208713,87.538,87.435,0.25]
[1645925048693,2.03208713,87.538,87.441,113.6]
[1645925048897,2.03208713,87.538,87.451,113.6]
[1645925049094,2.03208713,87.538,87.452,0.25]
[1645925049294,0.25,87.537,87.452,0.25]
[1645925050396,0.25,87.537,87.444,0.25]
[1645925050595,0.25,87.537,87.463,113.6]
[1645925050797,0.25,87.537,87.464,0.25]
[1645925050997,0.25,87.537,87.462,48.32238876]
[1645925051997,0.25,87.537,87.463,113.6]
[1645925053699,0.25,87.537,87.464,0.25]
[1645925057807,0.25,87.537,87.465,4.571]
[1645925059401,0.25,87.537,87.464,0.25]
[1645925059602,0.25,87.537,87.465,4.571]
[1645925060004,0.25,87.537,87.462,48.32238876]
[1645925060203,33.46101559,87.537,87.462,48.32238876]
[1645925060409,29.48133778,87.536,87.462,48.32238876]
[1645925060606,6.20376998,87.535,87.462,48.32238876]
[1645925060805,8.95055919,87.535,87.462,48.32238876]
[1645925061205,1.82878244,87.519,87.462,48.32238876]
[1645925064310,1.82878244,87.519,87.46,17.1511]
[1645925064507,1.61723336,87.509,87.431,23.2918]
[1645925064708,1.76848218,87.519,87.431,23.2918]
[1645925065108,1.76848218,87.519,87.413,5.97445696]
[1645925065309,32.40893674,87.518,87.417,49.65995113]
[1645925065509,1.65462787,87.517,87.418,113.6]
[1645925065709,1.65462787,87.517,87.417,49.65995113]
[1645925065910,17.1555,87.5,87.42,17.1547]
[1645925066111,1.79572885,87.499,87.42,17.1547]
[1645925066519,1.79572885,87.499,87.421,113.85]
[1645925066718,2.1688579,87.515,87.421,184.57678921]
[1645925066922,2.1688579,87.515,87.422,2.74678921]
[1645925067219,2.1688579,87.515,87.423,0.25]
[1645925067619,2.1688579,87.515,87.424,113.6]
[1645925067820,2.1688579,87.515,87.441,113.6]
[1645925068018,48.62020623,87.547,87.443,113.6]
[1645925068220,1.79485086,87.546,87.444,4.821]
[1645925068729,1.79485086,87.546,87.445,2.74678921]
[1645925068930,1.79485086,87.546,87.446,4.821]
[1645925069132,1.79485086,87.546,87.451,113.6]
[1645925069332,1.79485086,87.546,87.46,17.1448]
[1645925069537,1.79485086,87.546,87.463,113.6]
[1645925069732,0.25,87.545,87.464,4.821]
[1645925070834,0.25,87.545,87.464,4.571]
[1645925071633,0.25,87.545,87.463,118.171]
[1645925072635,0.25,87.545,87.463,113.6]
[1645925073337,0.25,87.545,87.462,56.85882087]
[1645925073535,17.147,87.54,87.462,56.85882087]
[1645925073734,1.77783114,87.539,87.462,56.85882087]
[1645925074336,1.77783114,87.539,87.463,113.6]
[1645925076742,1.77783114,87.539,87.465,113.6]
[1645925076939,0.25,87.545,87.465,113.6]
[1645925077142,0.25,87.545,87.467,113.6]
[1645925077546,0.25,87.545,87.469,113.6]
[1645925077942,0.25,87.545,87.471,113.6]
[1645925078341,0.25,87.545,87.473,113.6]
[1645925078840,0.25,87.545,87.475,113.6]
[1645925079042,0.25,87.545,87.477,113.6]
[1645925079651,2.18240465,87.568,87.479,113.6]
[1645925079844,1.85430802,87.598,87.493,113.6]
[1645925080047,1.85430802,87.598,87.501,181.58]
[1645925080245,1.85430802,87.598,87.511,181.58]
[1645925080444,2.06811312,87.621,87.514,113.6]
[1645925080645,2.06811312,87.621,87.515,0.25]
[1645925080845,2.06811312,87.621,87.533,113.6]
[1645925081046,2.06811312,87.621,87.534,0.25]
[1645925081245,2.06811312,87.621,87.535,4.567]
[1645925081445,2.06811312,87.621,87.536,0.25]
[1645925081646,2.06811312,87.621,87.541,113.6]
[1645925081647,0.25,87.62,87.541,113.6]
[1645925081847,0.25,87.62,87.54,16.45]
[1645925082051,0.25,87.62,87.537,19.46788921]
[1645925082251,0.25,87.62,87.537,16.7211]
[1645925082849,0.25,87.62,87.532,53.47078751]
[1645925083249,6.25936308,87.619,87.532,53.47078751]
[1645925084451,17.1361,87.61,87.532,53.47078751]
[1645925084652,1.68005017,87.609,87.532,53.47078751]
[1645925084856,6.24705017,87.609,87.532,53.47078751]
[1645925085454,4.567,87.609,87.532,53.47078751]
[1645925085653,4.567,87.619,87.532,53.47078751]
[1645925086454,17.1364,87.6,87.532,53.47078751]
[1645925086655,1.97336536,87.599,87.532,53.47078751]
[1645925087555,1.69816975,87.609,87.532,53.47078751]
[1645925088958,1.69816975,87.609,87.533,113.6]
[1645925089158,1.92249446,87.615,87.533,113.6]
[1645925089558,1.92249446,87.615,87.532,56.21757672]
[1645925089758,1.92249446,87.615,87.532,53.47078751]
[1645925090161,1.92249446,87.615,87.53,17.1281]
[1645925090362,6.48949446,87.615,87.53,17.1281]
[1645925090561,4.567,87.614,87.53,17.1281]
[1645925091163,17.1397,87.59,87.53,17.1281]
[1645925091369,16.45,87.6,87.53,17.1281]
[1645925091561,4.567,87.599,87.52,17.1412]
[1645925091762,6.4710536,87.599,87.471,49.4434]
[1645925091964,22.6469,87.598,87.48,2.74678921]
[1645925092264,22.6469,87.598,87.474,32.34708639]
[1645925092265,6.28041243,87.597,87.474,32.34708639]
[1645925092472,6.28041243,87.597,87.481,60.78027708]
[1645925092763,8.04383126,87.597,87.481,60.78027708]
[1645925092962,1.96674076,87.596,87.481,60.78027708]
[1645925093162,4.569,87.595,87.481,60.78027708]
[1645925093361,2.18426284,87.579,87.482,113.6]
[1645925093565,6.41499081,87.578,87.481,93.08990775]
[1645925093763,1.84599081,87.578,87.481,93.08990775]
[1645925093962,1.84599081,87.578,87.482,113.6]
[1645925094561,17.1442,87.56,87.482,113.6]
[1645925094762,2.14661921,87.559,87.482,113.6]
[1645925096367,2.14661921,87.559,87.481,60.78027708]
[1645925100175,2.14661921,87.559,87.482,113.6]
[1645925100384,2.14661921,87.559,87.482,116.34678921]
[1645925100576,1.74858199,87.569,87.482,116.34678921]
[1645925100777,1.74858199,87.569,87.483,2.74678921]
[1645925100977,1.74858199,87.569,87.484,113.6]
[1645925101178,1.74858199,87.569,87.484,145.90963067]
[1645925101376,1.74858199,87.569,87.485,2.74678921]
[1645925101576,1.92659042,87.578,87.486,113.6]
[1645925101777,1.92659042,87.578,87.491,113.6]
[1645925101975,1.92659042,87.578,87.492,0.25]
[1645925102384,1.92659042,87.578,87.493,113.6]
[1645925102583,1.92659042,87.578,87.494,0.25]
[1645925102987,1.92659042,87.578,87.497,113.6]
[1645925103284,1.92659042,87.578,87.501,113.6]
[1645925103885,1.92659042,87.578,87.501,116.34678921]
[1645925104486,1.92659042,87.578,87.51,17.1389]
[1645925104686,1.92659042,87.578,87.511,46.89230967]
[1645925105085,1.92659042,87.578,87.512,113.6]
[1645925105490,2.19933381,87.599,87.512,154.39963067]
[1645925105687,4.569,87.609,87.521,113.6]
[1645925105886,1.80176298,87.62,87.531,113.6]
[1645925106089,1.80176298,87.62,87.533,113.6]
[1645925106288,1.80176298,87.62,87.534,0.25]
[1645925106687,1.80176298,87.62,87.535,116.34678921]
[1645925107094,1.80176298,87.62,87.536,2.74678921]
[1645925107888,1.80176298,87.62,87.537,0.25]
[1645925108092,1.80176298,87.62,87.537,113.85]
[1645925108289,1.80176298,87.62,87.538,2.74678921]
[1645925108490,47.5796,87.621,87.54,16.45]
[1645925108691,47.5796,87.621,87.541,113.85]
[1645925108890,0.25,87.62,87.541,116.59678921]
[1645925109091,0.25,87.62,87.543,113.6]
[1645925109290,0.25,87.62,87.544,0.25]
[1645925109492,0.25,87.62,87.544,2.99678921]
[1645925109691,0.25,87.62,87.546,170.49734851]
[1645925110093,0.25,87.62,87.547,2.74678921]
[1645925111495,4.567,87.664,87.561,113.6]
[1645925111693,1.89799768,87.648,87.563,113.6]
[1645925111894,1.89799768,87.648,87.564,0.25]
[1645925112294,1.89799768,87.648,87.565,113.6]
[1645925112494,1.89799768,87.648,87.565,148.65641988]
[1645925112694,1.89799768,87.648,87.566,32.30963067]
[1645925112896,1.89799768,87.648,87.571,113.6]
[1645925113297,0.25,87.647,87.573,113.6]
[1645925113495,1.89799768,87.648,87.573,113.6]
[1645925113696,1.89799768,87.648,87.574,2.74678921]
[1645925114196,1.89799768,87.648,87.576,157.85821804]
[1645925114596,1.89799768,87.648,87.577,2.74678921]
[1645925114796,0.25,87.647,87.578,118.165]
[1645925115197,0.25,87.647,87.581,113.6]
[1645925115398,0.25,87.647,87.582,4.815]
[1645925115599,0.25,87.647,87.583,113.6]
[1645925115800,0.25,87.647,87.584,4.815]
[1645925116199,0.25,87.647,87.585,2.74678921]
[1645925116401,0.25,87.647,87.586,118.415]
[1645925116602,0.25,87.647,87.593,113.6]
[1645925116802,0.25,87.647,87.594,0.25]
[1645925117315,0.25,87.647,87.595,113.6]
[1645925117500,0.25,87.647,87.595,148.65641988]
[1645925117704,0.25,87.647,87.597,113.6]
[1645925118102,0.25,87.647,87.597,116.34678921]
[1645925118701,0.25,87.647,87.597,2.74678921]
[1645925118902,0.25,87.647,87.599,113.6]
[1645925119507,16.45,87.73,87.603,168.6]
[1645925119804,1.48173977,87.812,87.654,0.25]
[1645925120005,1.48173977,87.812,87.661,48.73534784]
[1645925120203,1.48173977,87.812,87.663,2.36390985]
[1645925120403,4.559,87.811,87.664,4.809]
[1645925120605,1.48173977,87.812,87.671,113.6]
[1645925120806,1.48173977,87.812,87.681,113.6]
[1645925121105,1.48173977,87.812,87.684,2.46996024]
[1645925121306,1.48173977,87.812,87.691,113.6]
[1645925121503,1.48173977,87.812,87.7,16.45]
[1645925121707,1.48173977,87.812,87.701,63.8950025]
[1645925121905,1.48173977,87.812,87.701,97.76740483]
[1645925122104,1.48173977,87.812,87.701,100.51419404]
[1645925122304,1.48173977,87.812,87.702,56.89220329]
[1645925122504,1.48173977,87.812,87.703,4.558]
[1645925122709,4.558,87.811,87.701,59.0870025]
[1645925122905,1.48173977,87.812,87.701,59.0870025]
[1645925123604,4.558,87.811,87.701,63.6450025]
[1645925123806,0.25,87.81,87.702,0.25]
[1645925124603,0.25,87.81,87.703,28.0327469]